Cogmind - Beta 15 @@@ ROGUE MODE // 2025.05.25 @ 22:19:01 Player: G4-R3D Result: Destroyed by G-73 Enforcer with Heavy Laser Performance ------------- Evolutions (5) 2500 Regions Visited (22) 4400 Robots Destroyed (241) 1205 Value Destroyed (9652) 9652 Prototype IDs (56) 1120 Alien Tech Used (1) 200 Bonus (2382) 2382 TOTAL SCORE: 21459 Bonus ------- High Alert Combat Kills 99 Follower Combat Kills 200 Entered Garrisons 400 Entered DSFs 500 Aligned with FarCom 300 Met Data Miner 300 Acquired ECA 300 Met Zhirov 300 Friendly Fire -17 Cogmind --------- Core Integrity 0/1000 Matter 176/300 Energy 98/100 System Corruption 0% Temperature Cool (0) Movement Core (50) Location -4/Proximity Caves Parts ------- > --- POWER (1) -------- (None) > --- PROPULSION (5) --- (None) > --- UTILITY (7) ------ (None) > --- WEAPON (4) ------- (None) > --- INVENTORY (5) ---- Encrypted Comm Array Advanced Targeting Computer Improved Phase Shifter Transdimensional Reconstructor Wave Gun Peak State ------------ > --- POWER ------------ Fusion Reactor > --- PROPULSION ------- Improved Treads Improved Treads Armored Treads Armored Treads Armored Treads > --- UTILITY ---------- High-capacity Storage Unit Improved Signal Interpreter Improved Targeting Computer Particle Accelerator Hacking Suite Improved Hacking Suite Improved System Restoration Module > --- WEAPON ----------- Gauss Rifle KE Penetrator Enhanced Gauss Cannon Enhanced Gauss Cannon > --- INVENTORY -------- Heavy Deuterium Engine Advanced Power Amplifier Huge Storage Unit Matter Compressor Encrypted Comm Array Advanced Targeting Computer Hardened Heavy Armor Plating Medium Reflective Plating Improved Powered Armor Advanced Force Field System Shield PSU Rigger Transdimensional Reconstructor Wave Gun KE Penetrator Enhanced Gauss Cannon Enhanced Gauss Cannon Makeshift Axe Great Axe [Rating: 79] Favorites ----------- Power Cooled Deuterium Engine Engine Cooled Deuterium Engine Power Core Light Nuclear Core Reactor Fusion Reactor Propulsion Armored Treads Treads Armored Treads Wheel Armored Wheel Utility High-capacity Storage Unit Device Improved Heat Sink Storage High-capacity Storage Unit Processor Improved Targeting Computer Hackware Hacking Suite Protection Improved Medium Armor Plating Weapon Heavy Machine Gun Energy Gun Wave Gun Energy Cannon Beam Cannon Ballistic Gun Heavy Machine Gun Ballistic Cannon Enhanced Gauss Cannon Launcher Shock Bomb Launcher Slashing Weapon Great Axe Build | -11 -10 -10 -9 -9 -9 -8 -8 -8 -7 -7 -7 -7 -6 -6 -6 -6 -5 -5 -5 -5 -5 -4 ------- Run | Yrd Mat Min Mat Min Exi Min Mat Gar Fac Gar Fac DSF Fac Low Low Dat Pro Fac Upp Upp Zhi Pro Slots Evolved 10 | . . . 2 . . . 2 . 2 . . . 2 . . . . 2 . . . . Power . | . . . . . . . . . . . . . . . . . . . . . . . Propulsion 3 | . . . 1 . . . 1 . . . . . . . . . . 1 . . . . Utility 5 | . . . 1 . . . 1 . 2 . . . . . . . . 1 . . . . Weapon 2 | . . . . . . . . . . . . . 2 . . . . . . . . . Parts Attached 121 | 8 1 7 11 1 1 3 13 3 5 6 . 17 16 1 5 . . 11 2 7 3 . Power 16 | 2 1 1 2 . . 1 1 . . 2 . 1 3 . . . . . . 1 1 . Engine 9 | 2 1 1 1 . . 1 1 . . . . . 2 . . . . . . . . . Core 6 | . . . 1 . . . . . . 2 . 1 1 . . . . . . 1 . . Reactor 1 | . . . . . . . . . . . . . . . . . . . . . 1 . Propulsion 32 | 2 . 2 5 . . . 6 1 . 1 . 8 2 . . . . 3 . 2 . . Treads 30 | 2 . 2 5 . . . 5 1 . . . 8 2 . . . . 3 . 2 . . Leg . | . . . . . . . . . . . . . . . . . . . . . . . Wheel 2 | . . . . . . . 1 . . 1 . . . . . . . . . . . . Hover . | . . . . . . . . . . . . . . . . . . . . . . . Flight . | . . . . . . . . . . . . . . . . . . . . . . . Utility 39 | 2 . 1 2 1 1 2 2 1 4 2 . 3 5 1 5 . . 2 1 2 2 . Device 9 | 1 . . 1 . . 1 . . . . . 1 . . 2 . . . . 2 1 . Storage 3 | 1 . . 1 . 1 . . . . . . . . . . . . . . . . . Processor 3 | . . 1 . . . . . . . . . . 2 . . . . . . . . . Hackware 2 | . . . . . . . 1 . . . . . . . . . . 1 . . . . Protection 22 | . . . . 1 . 1 1 1 4 2 . 2 3 1 3 . . 1 1 . 1 . Artifact . | . . . . . . . . . . . . . . . . . . . . . . . Weapon 34 | 2 . 3 2 . . . 4 1 1 1 . 5 6 . . . . 6 1 2 . . Energy Gun 5 | . . 1 . . . . 1 . . . . 1 . . . . . 2 . . . . Energy Cannon 2 | . . 2 . . . . . . . . . . . . . . . . . . . . Ballistic Gun 16 | 2 . . 2 . . . 2 . 1 . . 2 4 . . . . . 1 2 . . Ballistic Cannon 5 | . . . . . . . . . . . . . 1 . . . . 4 . . . . Launcher 3 | . . . . . . . 1 1 . 1 . . . . . . . . . . . . Special Weapon . | . . . . . . . . . . . . . . . . . . . . . . . Impact Weapon . | . . . . . . . . . . . . . . . . . . . . . . . Slashing Weapon 3 | . . . . . . . . . . . . 2 1 . . . . . . . . . Piercing Weapon . | . . . . . . . . . . . . . . . . . . . . . . . Special Melee Weapon . | . . . . . . . . . . . . . . . . . . . . . . . Unidentified Prototypes 12 | . . . 2 . . . 3 . . . . . 3 . 1 . . . . . 3 . Corrupted Parts 1 | . . . . . . . . . . 1 . . . . . . . . . . . . System Corruption 5 | . . . . . . . . . . 5 . . . . . . . . . . . . Parts Lost 53 | . . . 2 . . . 1 1 1 15 . 7 . . 1 . 1 5 . 4 . 15 Power 5 | . . . . . . . . . . 2 . 1 . . . . . . . 1 . 1 Propulsion 19 | . . . 2 . . . . 1 . 4 . 2 . . . . . 2 . 3 . 5 Utility 14 | . . . . . . . 1 . . 4 . 3 . . 1 . 1 . . . . 4 Weapon 15 | . . . . . . . . . 1 5 . 1 . . . . . 3 . . . 5 Highest Loss Streak 12 | . . . 2 . . . 1 1 1 12 . 6 . . 1 . 1 2 . 4 . 12 To Critical Strikes . | . . . . . . . . . . . . . . . . . . . . . . . Average Backups 15 | 1 5 7 8 10 10 10 14 18 19 14 9 14 18 17 18 19 19 16 19 17 19 16 Power 1 | . 2 2 1 1 1 1 1 2 2 1 1 1 1 2 2 2 2 2 2 1 1 . Propulsion 3 | 1 2 2 1 2 1 1 3 3 3 3 2 4 5 4 4 4 4 3 3 . . . Utility 7 | . 1 3 4 5 5 6 6 8 9 6 4 3 7 9 9 11 11 9 9 10 10 8 Weapon 2 | . . . . 2 2 2 2 5 4 3 2 5 3 2 1 1 1 1 3 4 6 4 Tool/Special . | . . . . . . . . . . . . . . . . . . . . . . . Unused Backups 23 | . . . 2 . . . 2 4 . 1 . . 2 . 1 . . . . . . 11 Power 4 | . . . . . . . 1 2 . . . . . . . . . . . . . 1 Propulsion 5 | . . . 1 . . . 1 2 . . . . 1 . . . . . . . . . Utility 10 | . . . 1 . . . . . . 1 . . . . 1 . . . . . . 7 Weapon 2 | . . . . . . . . . . . . . 1 . . . . . . . . 1 Tool/Special 2 | . . . . . . . . . . . . . . . . . . . . . . 2 Average Slot Usage (%) 96 | . 100 100 94 100 100 100 97 99 91 80 61 84 99 100 99 77 99 96 100 98 99 78 Engine 6 | . 14 14 6 11 11 11 9 9 7 3 . . 3 6 6 6 6 5 5 1 . . Core 1 | . . . 4 . . . . . . 3 7 6 3 . . . . . . 3 3 . Treads 27 | . 28 28 27 33 33 33 32 35 29 13 . 24 25 26 26 26 26 26 29 28 29 22 Device 2 | . 14 9 10 1 . . . . . . . 5 1 . . . . . . 1 5 3 Storage 7 | . 14 14 11 11 11 11 9 9 7 7 7 7 6 6 6 6 6 5 5 5 5 4 Processor 10 | . . 5 11 11 11 11 9 9 7 7 7 7 11 13 13 13 13 11 11 11 11 8 Hackware 6 | . . . . . . . 6 9 7 7 7 7 6 6 6 6 6 10 11 11 11 8 Protection 9 | . . . . 9 11 11 11 8 15 18 15 7 12 13 12 13 12 10 11 9 4 3 Ballistic Gun 17 | . 28 19 10 22 22 22 17 14 14 6 . 9 25 26 25 4 26 13 5 8 11 9 Ballistic Cannon 2 | . . . . . . . . . . . . . . . . . . 3 17 13 11 7 Peak Build Rating 79 | 7 8 9 19 18 18 23 33 36 43 43 28 51 64 65 68 64 64 76 76 74 79 77 Average Rating 46 | 5 7 8 15 18 17 17 27 34 39 35 28 43 62 64 64 46 63 70 75 70 72 60 On Entrance 40 | . 7 8 9 18 18 18 17 31 35 43 28 28 51 62 65 64 64 61 76 74 71 77 Naked Turns 113 | . . . . . . . . . . . . . . . . . . . . . . 113 Heaviest Build 108 | 15 15 18 25 31 61 61 68 65 71 74 59 76 88 84 86 80 80 108 104 99 90 99 Greatest Support 118 | 40 40 40 60 60 60 60 80 80 80 80 40 80 98 98 98 98 98 118 106 106 106 106 Greatest Overweight (x) 5 | . . . . . 1 1 5 1 . 1 1 2 1 . . . . 1 . 1 . 1 Average Overweight (x) . | . . . . . . . 1 . . . 1 . . . . . . . . . . . Largest Inventory Capacity 20 | 8 8 8 10 10 20 20 20 20 20 20 20 20 20 20 20 20 20 20 20 20 20 20 Average Capacity 17 | 7 8 8 9 10 11 20 20 20 20 20 20 20 20 20 20 20 20 20 20 20 20 17 Most Carried 20 | 3 7 8 10 10 10 11 17 20 20 20 9 20 20 20 20 20 20 20 20 20 20 20 Average Carried 16 | 1 5 7 8 10 9 10 14 18 19 14 9 14 19 19 19 20 20 17 19 18 19 16 Final Capacity 20 | 8 8 8 10 10 20 20 20 20 20 20 20 20 20 20 20 20 20 20 20 20 20 5 Final Carried 20 | 3 7 8 10 10 10 11 17 20 20 9 9 20 19 20 20 20 20 20 20 20 20 5 Class Distribution -------------------- 28% | Mutant 27% | Tank 20% | Scavenger-Mutant 13% | Hacker-Tank 3% | Scavenger-Gunner Dominant Class ---------------- Mutant | -10/Materials Mutant | -10/Mines Scavenger-Mutant | -9/Materials Scavenger-Mutant | -9/Mines Scavenger-Mutant | -9/Exiles Scavenger-Mutant | -8/Mines Mutant | -8/Materials Mutant | -8/Garrison Mutant | -7/Factory Mutant | -7/Garrison Mutant | -7/Factory Scavenger-Mutant | -7/DSF Tank | -6/Factory Tank | -6/Lower Caves Tank | -6/Lower Caves Mutant | -6/Data Miner Tank | -5/Proximity Caves Hacker-Tank | -5/Factory Hacker-Tank | -5/Upper Caves Scavenger-Gunner | -5/Upper Caves Scavenger-Gunner | -5/Zhirov Hacker-Gunner | -4/Proximity Caves Resources | -11 -10 -10 -9 -9 -9 -8 -8 -8 -7 -7 -7 -7 -6 -6 -6 -6 -5 -5 -5 -5 -5 -4 ----------- Run | Yrd Mat Min Mat Min Exi Min Mat Gar Fac Gar Fac DSF Fac Low Low Dat Pro Fac Upp Upp Zhi Pro Matter Collected 7445 | 310 232 284 364 184 . 113 446 411 232 289 . 331 1321 110 549 . 299 665 359 419 . 527 Remotely . | . . . . . . . . . . . . . . . . . . . . . . . Salvage Created 10188 | 97 510 297 1300 428 . 206 698 597 327 625 . 502 1551 99 656 . 439 1139 285 166 . 266 Parts 527 | 3 32 14 73 26 . 11 53 36 18 29 . 24 84 2 24 . 24 48 7 7 . 12 Haulers Intercepted 10 | . . . 5 . . . 2 . . . . . 2 . 1 . . . . . . . Recyclers Shooed 7 | . 1 1 . . . . 1 . 3 . . . 1 . . . . . . . . . Parts Field Recycled . | . . . . . . . . . . . . . . . . . . . . . . . Retrieved Matter . | . . . . . . . . . . . . . . . . . . . . . . . Parts Self-Destructed 77 | . . . . . . . . . . . . . . 2 24 . 24 . 7 7 . 13 Prevented . | . . . . . . . . . . . . . . . . . . . . . . . Kills | -11 -10 -10 -9 -9 -9 -8 -8 -8 -7 -7 -7 -7 -6 -6 -6 -6 -5 -5 -5 -5 -5 -4 ------- Run | Yrd Mat Min Mat Min Exi Min Mat Gar Fac Gar Fac DSF Fac Low Low Dat Pro Fac Upp Upp Zhi Pro Combat Hostiles Destroyed 207 | . 13 2 30 13 . 3 15 19 6 13 . 8 22 2 10 . 13 18 6 6 . 8 Melee 4 | . . . . . . . . . . . . 3 . . . . . 1 . . . . Guns 153 | . 13 2 13 13 . 3 15 11 6 5 . 5 22 2 10 . 13 15 1 2 . 2 Cannons 34 | . . . 17 . . . . . . . . . . . . . . 2 5 4 . 6 AOE 16 | . . . . . . . . 8 . 8 . . . . . . . . . . . . Classes Destroyed 17 | 2 2 2 2 . . 1 2 . . 1 . 3 . . . . . . . 1 . 1 Worker 6 | . . 1 1 . . . . . . . . . 2 . . . . 2 . . . . Tunneler 3 | 1 . . . 1 . . . . . . . . 1 . . . . . . . . . Hauler 10 | . . . 5 . . . 2 . . . . . 2 . 1 . . . . . . . Recycler 8 | 1 . 2 . . . 1 . . . . . . 3 . . . . 1 . . . . Operator 1 | . . . . . . . 1 . . . . . . . . . . . . . . . Drone 2 | . . . . . . . . . . . . . . . . . . . . . . 2 Watcher 6 | . . . 2 . . . 1 . . . . . 3 . . . . . . . . . Swarmer 63 | . 2 . 14 6 . . 6 11 . 3 . . 9 . . . 9 . . 2 . 1 Grunt 83 | . 11 . 12 7 . 2 5 3 3 8 . 4 2 2 7 . 4 9 4 . . . Brawler 2 | . . . . . . . . . . . . 1 . . . . . . 1 . . . Duelist 5 | . . . . . . 1 . . 1 . . . . . 1 . . . 1 . . 1 Sentry 21 | . . 2 4 . . . 2 2 2 1 . . 4 . . . . 2 . 1 . 1 Specialist 1 | . . . . . . . . . . . . 1 . . . . . . . . . . Hunter 15 | . . . . . . . 2 3 . . . 1 . . 2 . . 2 . 2 . 3 Programmer 13 | . . . . . . . . . . 1 . . 7 . . . . 5 . . . . Heavy 1 | . . . . . . . . . . . . 1 . . . . . . . . . . Behemoth 1 | . . . . . . . . . . . . . . . . . . . . 1 . . Best Kill Streak 8 | 2 6 2 6 3 . 3 3 5 4 8 . 3 7 2 4 . 5 5 3 3 . 3 Combat Bots Only 8 | . 6 1 6 3 . 3 3 5 4 8 . 3 4 2 4 . 5 4 3 3 . 3 Max Kills in Single Turn 4 | 1 1 1 2 1 . 1 2 4 1 3 . 1 1 1 2 . 2 2 1 1 . 1 Gunslinging 1 | . . . . . . . 1 1 . . . . . . 1 . 1 1 . . . . Exploded 4 | . . . . . . . . 4 . 3 . . . . . . . . . . . . Melee 1 | . . . . . . . . . . . . 1 . . . . . 1 . . . . Uniques/NPCs Destroyed . | . . . . . . . . . . . . . . . . . . . . . . . Combat | -11 -10 -10 -9 -9 -9 -8 -8 -8 -7 -7 -7 -7 -6 -6 -6 -6 -5 -5 -5 -5 -5 -4 -------- Run | Yrd Mat Min Mat Min Exi Min Mat Gar Fac Gar Fac DSF Fac Low Low Dat Pro Fac Upp Upp Zhi Pro Hostile Shots Fired 1491 | . 65 6 127 54 . 14 61 84 92 255 . 48 132 4 66 . 26 116 8 94 . 239 Missed 432 | . 21 . 33 17 . 7 13 20 23 84 . 10 47 1 11 . 16 34 1 26 . 68 Hits 1059 | . 44 6 94 37 . 7 48 64 69 171 . 38 85 3 55 . 10 82 7 68 . 171 Melee 13 | . . . . . . 1 . . 9 . . . . . 1 . . . . . . 2 Projectile 1046 | . 44 6 94 37 . 6 48 64 60 171 . 38 85 3 54 . 10 82 7 68 . 169 Critical Strikes 31 | . . . 4 . . . . 3 3 . . 4 1 . 3 . . 6 . 1 . 6 Actively Blocked 4 | . . . . . . . . . . . . 2 . . 1 . . . . . . 1 Part Disruptions 2 | . . . . . . . . . . . . . 1 . . . . 1 . . . . Damage Taken 15779 | . 523 92 1000 439 . 131 683 841 1098 2089 . 1181 914 51 898 . 154 1431 130 1427 . 2697 Core 2073 | . 55 30 158 97 . 47 113 63 44 115 . 160 81 . 99 . . 106 . 199 . 706 Absorbed by Shields 176 | . . . . . . . . 34 . 31 . . . . . . . . . . . 111 Redirected to Shielding 266 | . . . . . . . . . . . . . . . 74 . 30 . . . . 162 Ignored by Resistances 283 | . . . . . . . . . . . . . 25 6 94 . 13 145 . . . . Regen/Repaired (Parts) 121 | . . . 121 . . . . . . . . . . . . . . . . . . . Core Remaining (%) 65 | 100 . 66 . . . 24 . 68 . . . 54 . . . . 78 . . . . . Volleys Fired 568 | 5 44 15 86 29 . 8 49 52 27 34 . 16 53 4 25 . 15 50 11 19 . 26 Largest 4 | 2 2 2 2 2 . 2 2 2 2 2 . 2 4 4 4 . 4 4 4 4 . 4 Hottest 188 | 40 40 120 120 46 . 46 48 61 48 61 . 60 120 120 120 . 120 188 174 174 . 155 Shots Fired 1445 | 10 88 30 172 58 . 16 98 86 50 50 . 32 208 15 104 . 58 170 44 67 . 89 Gun 1192 | 10 88 24 78 58 . 16 98 68 50 31 . 32 208 15 104 . 58 162 11 27 . 54 Cannon 216 | . . 6 94 . . . . . . . . . . . . . . 8 33 40 . 35 Launcher 37 | . . . . . . . . 18 . 19 . . . . . . . . . . . . Special . | . . . . . . . . . . . . . . . . . . . . . . . Kinetic 1280 | 10 88 24 78 58 . 16 98 68 50 31 . 31 208 15 104 . 58 143 44 67 . 89 Thermal 128 | . . 6 94 . . . . . . . . 1 . . . . . 27 . . . . Explosive . | . . . . . . . . . . . . . . . . . . . . . . . Electromagnetic 37 | . . . . . . . . 18 . 19 . . . . . . . . . . . . Robot Hit Streak 23 | 3 7 9 18 15 . 22 20 18 23 6 . 9 20 4 16 . 9 19 6 7 . 9 Robot Miss Streak 8 | 3 4 2 4 3 . 1 3 2 3 4 . 2 8 2 3 . 2 6 3 3 . 5 Penetration Max 1 | . . . . . . . . . . . . . . . . . . . . 1 . 1 Secondary Targets 24 | . 1 . 1 1 . 2 1 2 . . . 2 1 . 5 . 4 4 . . . . Max Gunslinging Chain 1 | . 1 . 1 1 . 1 1 1 . . . 1 1 . 1 . 1 1 . . . . Shots Hit Robots 971 | 5 58 22 121 45 . 14 76 55 40 26 . 35 122 8 74 . 33 118 24 41 . 54 Core Hits 431 | 2 23 7 45 19 . 9 34 32 19 23 . 17 52 4 27 . 18 50 13 12 . 25 Critical Kills 3 | . . 1 1 . . . 1 . . . . . . . . . . . . . . . Critical Parts Destroyed 10 | . . . 2 1 . . . . 1 . . . 1 . . . 1 1 . 1 . 2 Critical Strikes 24 | . . 1 3 1 . . 1 . 1 . . . 1 . . . 1 3 2 6 . 4 Burn 1 | . . . . . . . . . . . . . . . . . . 1 . . . . Meltdown 1 | . . 1 . . . . . . . . . . . . . . . . . . . . Destroy 12 | . . . 3 1 . . 1 . 1 . . . 1 . . . 1 1 . 1 . 2 Blast 9 | . . . . . . . . . . . . . . . . . . . 2 5 . 2 Sever 1 | . . . . . . . . . . . . . . . . . . 1 . . . . Melee Attacks 36 | . . . . . . . . . . . . 21 3 . 7 . . 5 . . . . Impact . | . . . . . . . . . . . . . . . . . . . . . . . Slashing 36 | . . . . . . . . . . . . 21 3 . 7 . . 5 . . . . Piercing . | . . . . . . . . . . . . . . . . . . . . . . . Sneak Attacks . | . . . . . . . . . . . . . . . . . . . . . . . Combat Hostiles . | . . . . . . . . . . . . . . . . . . . . . . . Follow-up Attacks . | . . . . . . . . . . . . . . . . . . . . . . . Damage Inflicted 20961 | 64 733 321 2037 716 . 232 1182 1024 654 1126 . 741 3196 190 1557 . 762 3209 729 1097 . 1391 Guns 16053 | 64 727 252 958 712 . 212 1151 807 649 407 . 528 3090 190 1557 . 762 2674 131 394 . 788 Cannons 3205 | . . 69 1078 . . . . . . . . . . . . . . 154 598 703 . 603 Explosions 1174 | . . . . . . . . 213 . 719 . . . . . . . 242 . . . . Melee 352 | . . . . . . . . . . . . 213 . . . . . 139 . . . . Ramming 177 | . 6 . 1 4 . 20 31 4 5 . . . 106 . . . . . . . . . Kinetic 17531 | 64 727 252 958 712 . 212 1151 807 649 407 . 528 3090 190 1557 . 762 2248 729 1097 . 1391 Thermal 2044 | . . 69 1078 . . . . . . 75 . . . . . . . 822 . . . . Explosive . | . . . . . . . . . . . . . . . . . . . . . . . Electromagnetic 857 | . . . . . . . . 213 . 644 . . . . . . . . . . . . Impact . | . . . . . . . . . . . . . . . . . . . . . . . Slashing 352 | . . . . . . . . . . . . 213 . . . . . 139 . . . . Piercing . | . . . . . . . . . . . . . . . . . . . . . . . Highest Corruption 13 | . . . . . . . . 1 . 13 13 13 6 6 6 6 6 2 2 2 . . Average Corruption 4 | . . . . . . . . 1 . 10 13 13 3 6 6 6 6 1 2 1 . . Corruption Purged 2 | . . . . . . . . . . . . . . . . . . . . 2 . . Corruption Blocked . | . . . . . . . . . . . . . . . . . . . . . . . Effects 183 | . . . . . . . . 6 . 11 . 23 39 13 40 5 20 11 2 13 . . Message Errors 34 | . . . . . . . . 1 . 1 . 8 7 1 5 1 6 3 . 1 . . Matter Fused 33 | . . . . . . . . . . 1 . 5 9 2 7 1 3 2 . 3 . . Heat Flow Errors 31 | . . . . . . . . 1 . 2 . 3 4 4 9 2 2 2 . 2 . . Energy Discharges 23 | . . . . . . . . 3 . 1 . 4 3 1 5 . 2 . 2 2 . . Parts Rejected 1 | . . . . . . . . . . . . . 1 . . . . . . . . . Parts Fused 2 | . . . . . . . . . . . . . 1 . . . 1 . . . . . Data Loss (minor) 22 | . . . . . . . . . . 2 . 1 6 1 6 1 2 1 . 2 . . Data Loss (major) 9 | . . . . . . . . . . . . . 5 1 1 . . 1 . 1 . . Misfires 14 | . . . . . . . . . . 1 . 1 2 1 5 . 1 2 . 1 . . Alerts 3 | . . . . . . . . . . . . . 1 . 1 . . . . 1 . . Misdirections 2 | . . . . . . . . . . 2 . . . . . . . . . . . . Weapon Failures 9 | . . . . . . . . 1 . 1 . 1 . 2 1 . 3 . . . . . Overload Shots . | . . . . . . . . . . . . . . . . . . . . . . . Overflow Damage 123 | . . . . . . . . 3 . 9 . . 9 . . . . 102 . . . . Projectiles . | . . . . . . . . . . . . . . . . . . . . . . . Explosions 110 | . . . . . . . . 3 . 9 . . . . . . . 98 . . . . Melee 13 | . . . . . . . . . . . . . 9 . . . . 4 . . . . Knockbacks 15 | . . . . . . . . . . . . . 1 . . . . 1 3 5 . 5 Impact 1 | . . . . . . . . . . . . . 1 . . . . . . . . . Kinetic 14 | . . . . . . . . . . . . . . . . . . 1 3 5 . 5 Secondary . | . . . . . . . . . . . . . . . . . . . . . . . Self-Inflicted Damage 170 | . . . . . . . 9 62 . 99 . . . . . . . . . . . . Shots 12 | . . . . . . . . 5 . 7 . . . . . . . . . . . . Rammed 20 | . 1 1 1 . . 2 4 1 1 . . . 9 . . . . . . . . . Targets Rammed 21 | . 1 1 1 1 . 2 4 1 1 . . . 9 . . . . . . . . . Kicked . | . . . . . . . . . . . . . . . . . . . . . . . Crushed 1 | . . . . 1 . . . . . . . . . . . . . . . . . . Highest Temperature 677 | . 6 189 273 2 . 2 31 130 18 269 . 243 252 246 345 101 225 275 456 677 . 146 Average Temperature 87 | . 3 84 66 2 . 2 12 25 8 65 . 93 63 88 122 53 52 78 213 189 . 30 Received Heat Transfer 3647 | . 210 27 321 195 . 54 162 225 243 339 . 144 87 27 351 . 21 486 63 413 . 279 Effects 25 | . . . . . . . . . . . . . . . . . . 6 4 15 . . Shutdowns 1 | . . . . . . . . . . . . . . . . . . . . 1 . . Energy Bleed 4 | . . . . . . . . . . . . . . . . . . . 2 2 . . Interference 12 | . . . . . . . . . . . . . . . . . . 6 2 4 . . Matter Decay 3 | . . . . . . . . . . . . . . . . . . . . 3 . . Damage (major) 4 | . . . . . . . . . . . . . . . . . . . . 4 . . Damage (core) 1 | . . . . . . . . . . . . . . . . . . . . 1 . . Siege Activations . | . . . . . . . . . . . . . . . . . . . . . . . Martial Activations . | . . . . . . . . . . . . . . . . . . . . . . . Shielding Activations . | . . . . . . . . . . . . . . . . . . . . . . . Robots Disrupted 1 | . . . . . . . . . . 1 . . . . . . . . . . . . Combat Hostiles 1 | . . . . . . . . . . 1 . . . . . . . . . . . . Robots Corrupted 1 | . . . . . . . . . . . . . 1 . . . . . . . . . Combat Hostiles . | . . . . . . . . . . . . . . . . . . . . . . . Parts Fried 4 | . . . . . . . . 2 . . . . 2 . . . . . . . . . Impact Corruptions 1 | . . . . . . . . . . . . . 1 . . . . . . . . . Robots Melted 1 | . . 1 . . . . . . . . . . . . . . . . . . . . Combat Hostiles . | . . . . . . . . . . . . . . . . . . . . . . . Parts Melted 16 | . . 2 10 . . . . . . 1 . . . . 1 . . 2 . . . . Heat Transferred 3506 | . . 148 2220 . . . . . . 100 . . . . . . . 1038 . . . . Parts Sabotaged . | . . . . . . . . . . . . . . . . . . . . . . . Parts Stolen . | . . . . . . . . . . . . . . . . . . . . . . . Parts Stripped . | . . . . . . . . . . . . . . . . . . . . . . . Power Chain Reactions 1 | . . . . . . . . . . 1 . . . . . . . . . . . . Alert | -11 -10 -10 -9 -9 -9 -8 -8 -8 -7 -7 -7 -7 -6 -6 -6 -6 -5 -5 -5 -5 -5 -4 ------- Run | Yrd Mat Min Mat Min Exi Min Mat Gar Fac Gar Fac DSF Fac Low Low Dat Pro Fac Upp Upp Zhi Pro Maximum Alert Level 3 | . 1 . 2 1 . . . 3 2 2 1 1 1 . . . . 1 . . . . Low Security (%) 60 | 100 87 100 33 52 . 100 100 14 . . . 42 69 . . . . 99 . . . . Level 1 28 | . 12 . 58 47 . . . 31 63 61 100 57 30 . . . . . . . . . Level 2 7 | . . . 8 . . . . 24 36 38 . . . . . . . . . . . . Level 3 3 | . . . . . . . . 29 . . . . . . . . . . . . . . Level 4 . | . . . . . . . . . . . . . . . . . . . . . . . Level 5 . | . . . . . . . . . . . . . . . . . . . . . . . High Security . | . . . . . . . . . . . . . . . . . . . . . . . Max Security . | . . . . . . . . . . . . . . . . . . . . . . . Sterilizations 1 | . . . . . . . . . . . . 1 . . . . . . . . . . Peak Influence 868 | 5 223 75 477 289 . 60 135 868 455 492 258 328 358 . . . . 206 . . . . Initial 455 | . . 75 . 135 . . . 76 455 250 258 183 172 . . . . 63 . . . . Average 190 | . 114 47 249 193 . 13 51 495 393 339 258 254 121 . . . . 55 . . . . Influence Increases 6556 | 10 424 55 897 360 . 75 438 802 191 392 4 215 726 40 285 . 290 817 140 140 . 255 Destroy 0b10 Robot/C 4200 | . 260 40 600 260 . 60 300 380 120 260 . 160 440 40 200 . 260 460 120 120 . 120 Destroy 0b10 Robot/NC 190 | 10 . 15 40 5 . 5 20 . . . . 5 55 . 5 . . 20 . . . 10 Destroy Leader 800 | . 50 . 154 50 . 10 76 30 30 20 . 30 150 . 20 . 30 90 20 20 . 20 Allied During Kill 48 | . . . . . . . . . . . . . . . . . . 48 . . . . Successful Hack 124 | . 22 . 8 . . . 25 12 10 . 4 . 27 . . . . 16 . . . . Select Force Hacks 60 | . 30 . 30 . . . . . . . . . . . . . . . . . . . Disable Machine 225 | . . . 15 . . . . 45 . . . 15 30 . . . . 120 . . . . Anti-Garrison Action 350 | . . . . . . . . 300 . 50 . . . . . . . . . . . . Destroy Structure 124 | . 2 . 5 . . . 2 35 1 17 . 5 9 . . . . 48 . . . . Lose Combat Pursuer 435 | . 60 . 45 45 . . 15 . 30 45 . . 15 . 60 . . 15 . . . 105 Influence Decreases 6483 | 10 230 249 548 484 225 75 321 51 701 258 234 149 708 327 286 58 188 782 258 147 12 182 Entered New Map 1895 | . . 119 . 214 225 . . 41 413 108 234 79 156 129 12 58 . 39 52 4 12 . Time Decay 3830 | 10 230 130 378 270 . 75 311 . 278 . . . 552 198 264 . 178 503 206 143 . 104 Lost Part 411 | . . . 20 . . . 10 10 10 150 . 70 . . 10 . 10 43 . . . 78 Lost Ally 75 | . . . . . . . . . . . . . . . . . . 75 . . . . Purge Threat 272 | . . . 150 . . . . . . . . . . . . . . 122 . . . . Squads Dispatched 41 | . 5 . 7 . . . 3 . 1 . . 1 13 . . . . 9 . 1 . 1 Investigation 14 | . 3 . 6 . . . 1 . . . . . 1 . . . . 3 . . . . Extermination 10 | . . . . . . . . . 1 . . . 6 . . . . 3 . . . . Reinforcement 11 | . 2 . 1 . . . 1 . . . . 1 3 . . . . 3 . . . . Assault 2 | . . . . . . . . . . . . . . . . . . . . 1 . 1 Garrison 4 | . . . . . . . 1 . . . . . 3 . . . . . . . . . Intercept . | . . . . . . . . . . . . . . . . . . . . . . . Searches Triggered . | . . . . . . . . . . . . . . . . . . . . . . . Construction Impeded 1 | . . . . . . . . . . . . . 1 . . . . . . . . . Haulers Reinforced 2 | . . . . . . . . . . . . . . . . . . 2 . . . . Active Scanning Responses . | . . . . . . . . . . . . . . . . . . . . . . . Cargo Convoy Interrupts . | . . . . . . . . . . . . . . . . . . . . . . . Stealth | -11 -10 -10 -9 -9 -9 -8 -8 -8 -7 -7 -7 -7 -6 -6 -6 -6 -5 -5 -5 -5 -5 -4 --------- Run | Yrd Mat Min Mat Min Exi Min Mat Gar Fac Gar Fac DSF Fac Low Low Dat Pro Fac Upp Upp Zhi Pro Distress Signals 9 | . 1 1 3 . . . 2 . . . . . 1 . . . . 1 . . . . Communications Jammed . | . . . . . . . . . . . . . . . . . . . . . . . Distress Signals . | . . . . . . . . . . . . . . . . . . . . . . . Times Spotted 282 | . 20 4 46 14 . 3 22 16 10 18 . 8 28 2 14 . 11 28 6 12 . 20 Peak Tracking Total 11 | . 3 2 7 4 . 3 4 4 5 7 . 3 6 2 5 . 3 3 3 7 . 11 Tactical Retreats 19 | . 3 . 3 2 . . 1 . 2 2 . . 1 . 1 . . 1 . . . 3 Traps | -11 -10 -10 -9 -9 -9 -8 -8 -8 -7 -7 -7 -7 -6 -6 -6 -6 -5 -5 -5 -5 -5 -4 ------- Run | Yrd Mat Min Mat Min Exi Min Mat Gar Fac Gar Fac DSF Fac Low Low Dat Pro Fac Upp Upp Zhi Pro Traps Triggered 19 | . 2 . 2 . . . 1 2 1 7 . 2 2 . . . . . . . . . Indirectly 2 | . . . . . . . . 2 . . . . . . . . . . . . . . Trap Hack Attempts . | . . . . . . . . . . . . . . . . . . . . . . . Triggered . | . . . . . . . . . . . . . . . . . . . . . . . Disarmed 6 | . . . . . . . . . 6 . . . . . . . . . . . . . Reprogrammed . | . . . . . . . . . . . . . . . . . . . . . . . Reused . | . . . . . . . . . . . . . . . . . . . . . . . Traps Extracted . | . . . . . . . . . . . . . . . . . . . . . . . Installed . | . . . . . . . . . . . . . . . . . . . . . . . Triggered . | . . . . . . . . . . . . . . . . . . . . . . . Objects Rigged 3 | . . . . . . 1 . 2 . . . . . . . . . . . . . . Exploded 2 | . . . . . . . 1 1 . . . . . . . . . . . . . . Time Bombs Activated 1 | . . . . . . . . 1 . . . . . . . . . . . . . . Exploded 1 | . . . . . . . . 1 . . . . . . . . . . . . . . Machines | -11 -10 -10 -9 -9 -9 -8 -8 -8 -7 -7 -7 -7 -6 -6 -6 -6 -5 -5 -5 -5 -5 -4 ---------- Run | Yrd Mat Min Mat Min Exi Min Mat Gar Fac Gar Fac DSF Fac Low Low Dat Pro Fac Upp Upp Zhi Pro Machines Disabled 20 | . . . 1 . . . . 7 . 1 . 1 2 . . . . 8 . . . . Max in Single Turn 4 | . . . 1 . . . . 2 . 1 . 1 1 . . . . 4 . . . . Garrison Relay 5 | . . . . . . . . 4 . 1 . . . . . . . . . . . . Machines Repaired . | . . . . . . . . . . . . . . . . . . . . . . . Machines Dismantled . | . . . . . . . . . . . . . . . . . . . . . . . Machines Sabotaged . | . . . . . . . . . . . . . . . . . . . . . . . Overloaded Fab Kills . | . . . . . . . . . . . . . . . . . . . . . . . Hacking | -11 -10 -10 -9 -9 -9 -8 -8 -8 -7 -7 -7 -7 -6 -6 -6 -6 -5 -5 -5 -5 -5 -4 --------- Run | Yrd Mat Min Mat Min Exi Min Mat Gar Fac Gar Fac DSF Fac Low Low Dat Pro Fac Upp Upp Zhi Pro Machines Accessed 59 | . 6 . 8 . 1 . 5 2 3 . 1 . 12 . . 4 . 8 . 1 8 . Terminals 27 | . 5 . 5 . . . 4 2 1 . 1 . 6 . . . . 3 . . . . Fabricators 4 | . . . . . . . . . 1 . . . . . . . . 3 . . . . Repair Stations 4 | . . . 1 . . . . . . . . . 1 . . . . 2 . . . . Recycling Units 5 | . 1 . 1 . . . . . . . . . 3 . . . . . . . . . Scanalyzers 3 | . . . 1 . . . . . . . . . 2 . . . . . . . . . Garrison Access 2 | . . . . . . . 1 . 1 . . . . . . . . . . . . . Total Hacks 198 | . 15 . 22 . 1 . 17 3 8 . 2 . 29 . . 28 . 25 . 1 47 . Successful 141 | . 7 . 13 . 1 . 10 2 4 . 1 . 15 . . 28 . 12 . 1 47 . Failed 57 | . 8 . 9 . . . 7 1 4 . 1 . 14 . . . . 13 . . . . Catastrophic 10 | . 5 . 1 . . . . . 1 . . . 3 . . . . . . . . . Database Lockouts . | . . . . . . . . . . . . . . . . . . . . . . . Manual 63 | . 12 . 13 . 1 . 11 . 3 . . . 13 . . . . 10 . . . . Terminals 76 | . 13 . 15 . . . 16 3 5 . 2 . 14 . . . . 8 . . . . Fabricators 11 | . . . . . . . . . 1 . . . . . . . . 10 . . . . Repair Stations 10 | . . . 2 . . . . . . . . . 1 . . . . 7 . . . . Recycling Units 10 | . 2 . 1 . . . . . . . . . 7 . . . . . . . . . Scanalyzers 11 | . . . 4 . . . . . . . . . 7 . . . . . . . . . Garrison Access 3 | . . . . . . . 1 . 2 . . . . . . . . . . . . . Terminal Hacks 97 | . 3 . 2 . 1 . 5 2 2 . 1 . 3 . . 28 . 2 . 1 47 . Record 46 | . . . . . . . . . . . . . . . . 11 . . . . 35 . Part Schematic 14 | . . . . . . . 1 . . . . . . . . 9 . . . . 4 . Robot Schematic 5 | . . . . . . . . . . . . . . . . 5 . . . . . . Robot Analysis 9 | . 2 . 1 . . . . . . . . . 1 . . . . 1 . . 4 . Prototype ID Bank 9 | . . . . . . . 2 . . . . . . . . 3 . . . . 4 . Open Door 1 | . . . . . . . . . . . . . . . . . . . . 1 . . Open DSF 1 | . . . . . . . . . . . 1 . . . . . . . . . . . Branch Access Points 1 | . . . . . . . . . . . . . 1 . . . . . . . . . Alert Level 1 | . . . . . . . 1 . . . . . . . . . . . . . . . Unreport Threat 2 | . . . 1 . . . . . . . . . . . . . . 1 . . . . Disarm Traps 1 | . . . . . . . . . 1 . . . . . . . . . . . . . Zone Layout 4 | . 1 . . . . . 1 . 1 . . . 1 . . . . . . . . . Garrison Registry 1 | . . . . . . . . 1 . . . . . . . . . . . . . . Security Stations 1 | . . . . . . . . 1 . . . . . . . . . . . . . . Proto ID Catalog 1 | . . . . . 1 . . . . . . . . . . . . . . . . . Fabricator Hacks 6 | . . . . . . . . . . . . . . . . . . 6 . . . . Network Status 1 | . . . . . . . . . . . . . . . . . . 1 . . . . Load Schematic 1 | . . . . . . . . . . . . . . . . . . 1 . . . . Build 4 | . . . . . . . . . . . . . . . . . . 4 . . . . Repair Station Hacks 4 | . . . 2 . . . . . . . . . . . . . . 2 . . . . Scan Component 3 | . . . 1 . . . . . . . . . . . . . . 2 . . . . Repair 1 | . . . 1 . . . . . . . . . . . . . . . . . . . Recycling Unit Hacks 3 | . . . . . . . . . . . . . 3 . . . . . . . . . Process 2 | . . . . . . . . . . . . . 2 . . . . . . . . . Retrieve Matter 1 | . . . . . . . . . . . . . 1 . . . . . . . . . Scanalyzer 11 | . . . 4 . . . . . . . . . 7 . . . . . . . . . Insert Component 6 | . . . 2 . . . . . . . . . 4 . . . . . . . . . Analyze 5 | . . . 2 . . . . . . . . . 3 . . . . . . . . . Garrison Access Hacks 2 | . . . . . . . 1 . 1 . . . . . . . . . . . . . Unlock Access 2 | . . . . . . . 1 . 1 . . . . . . . . . . . . . Unauthorized Hacks 18 | . 4 . 5 . . . 4 . 1 . . . 2 . . . . 2 . . . . Terminals 15 | . 2 . 4 . . . 4 . 1 . . . 2 . . . . 2 . . . . Botnet 15 | . 2 . 4 . . . 4 . 1 . . . 2 . . . . 2 . . . . Fabricators . | . . . . . . . . . . . . . . . . . . . . . . . Repair Stations . | . . . . . . . . . . . . . . . . . . . . . . . Recycling Units 3 | . 2 . 1 . . . . . . . . . . . . . . . . . . . Monitor 1 | . 1 . . . . . . . . . . . . . . . . . . . . . Tunnel 2 | . 1 . 1 . . . . . . . . . . . . . . . . . . . Scanalyzers . | . . . . . . . . . . . . . . . . . . . . . . . Garrison Access . | . . . . . . . . . . . . . . . . . . . . . . . Data Cores Recovered 1 | . . . . . . . 1 . . . . . . . . . . . . . . . Used . | . . . . . . . . . . . . . . . . . . . . . . . Hacking Detections 37 | . 5 . 6 . . . 4 2 2 . . . 11 . . . . 7 . . . . Full Trace Events 9 | . 2 . 3 . . . . . . . . . 1 . . . . 3 . . . . Feedback Events . | . . . . . . . . . . . . . . . . . . . . . . . Feedback Blocked . | . . . . . . . . . . . . . . . . . . . . . . . Robot Schematics Acquired 5 | . . . . . . . . . . . . . . . . 5 . . . . . . Robots Built 5 | . . . . . . . . . . . . . . . . . . 5 . . . . Authchips . | . . . . . . . . . . . . . . . . . . . . . . . Time 218 | . . . . . . . . . . . . . . . . . . 218 . . . . Total Robot Build Rating 26 | . . . . . . . . . . . . . . . . . . 26 . . . . Part Schematics Acquired 19 | . . . 2 . . . 1 . . . . . 3 . . 9 . . . . 4 . Parts Built 4 | . . . . . . . . . . . . . . . . . . 4 . . . . Authchips . | . . . . . . . . . . . . . . . . . . . . . . . Time 201 | . . . . . . . . . . . . . . . . . . 201 . . . . Total Part Build Rating 22 | . . . . . . . . . . . . . . . . . . 22 . . . . Parts Repaired 1 | . . . 1 . . . . . . . . . . . . . . . . . . . Time 26 | . . . 26 . . . . . . . . . . . . . . . . . . . Parts Recycled . | . . . . . . . . . . . . . . . . . . . . . . . Recycled Matter 35 | . . . . . . . . . . . . . 35 . . . . . . . . . Retrieved Matter . | . . . . . . . . . . . . . . . . . . . . . . . Retrieved Components . | . . . . . . . . . . . . . . . . . . . . . . . Parts Scanalyzed 5 | . . . 2 . . . . . . . . . 3 . . . . . . . . . Part Schematics Acquired 5 | . . . 2 . . . . . . . . . 3 . . . . . . . . . Parts Damaged . | . . . . . . . . . . . . . . . . . . . . . . . Bothacking | -11 -10 -10 -9 -9 -9 -8 -8 -8 -7 -7 -7 -7 -6 -6 -6 -6 -5 -5 -5 -5 -5 -4 ------------ Run | Yrd Mat Min Mat Min Exi Min Mat Gar Fac Gar Fac DSF Fac Low Low Dat Pro Fac Upp Upp Zhi Pro Used RIF Installer . | . . . . . . . . . . . . . . . . . . . . . . . Robots Hacked . | . . . . . . . . . . . . . . . . . . . . . . . Non-combat . | . . . . . . . . . . . . . . . . . . . . . . . Combat . | . . . . . . . . . . . . . . . . . . . . . . . Robot Hacks Applied . | . . . . . . . . . . . . . . . . . . . . . . . Relay Couplers Released 20 | . . . . . . . . 12 . 8 . . . . . . . . . . . . Machine Destruction 17 | . . . . . . . . 12 . 5 . . . . . . . . . . . . Programmers 3 | . . . . . . . . . . 3 . . . . . . . . . . . . Fabnet Peak Effective % . | . . . . . . . . . . . . . . . . . . . . . . . Robots Rewired . | . . . . . . . . . . . . . . . . . . . . . . . Allies Hacked 1 | . . . . . . . . . . . . . . . . . . 1 . . . . Hacks Repelled . | . . . . . . . . . . . . . . . . . . . . . . . Allies | -11 -10 -10 -9 -9 -9 -8 -8 -8 -7 -7 -7 -7 -6 -6 -6 -6 -5 -5 -5 -5 -5 -4 -------- Run | Yrd Mat Min Mat Min Exi Min Mat Gar Fac Gar Fac DSF Fac Low Low Dat Pro Fac Upp Upp Zhi Pro Total Allies 5 | . . . . . . . . . . . . . . . . . . 5 . . . . Largest Group 5 | . . . . . . . . . . . . . . . . . . 5 . . . . Highest-Rated Group 154 | . . . . . . . . . . . . . . . . . . 154 . . . . Highest-Rated Ally 32 | . . . . . . . . . . . . . . . . . . 32 . . . . Initial Warlord ECA Mod 193 | . . . . . . . . . 7 7 8 8 17 17 17 17 16 16 16 16 16 15 Total Orders . | . . . . . . . . . . . . . . . . . . . . . . . Ally Attacks 21 | . . . . . . . . . . . . . . . . . . 21 . . . . Total Damage 1395 | . . . . . . . . . . . . . . . . . . 1395 . . . . Kills 7 | . . . . . . . . . . . . . . . . . . 7 . . . . Allies Corrupted . | . . . . . . . . . . . . . . . . . . . . . . . Allies Melted . | . . . . . . . . . . . . . . . . . . . . . . . Intel | -11 -10 -10 -9 -9 -9 -8 -8 -8 -7 -7 -7 -7 -6 -6 -6 -6 -5 -5 -5 -5 -5 -4 ------- Run | Yrd Mat Min Mat Min Exi Min Mat Gar Fac Gar Fac DSF Fac Low Low Dat Pro Fac Upp Upp Zhi Pro Active Infowar (turns) 795 | 11 594 166 24 . . . . . . . . . . . . . . . . . . . Seismic 795 | 11 594 166 24 . . . . . . . . . . . . . . . . . . . Robot Analysis Total 9 | . 2 . 1 . . . . . . . . . 1 . . . . 1 . . 4 . Derelict Logs Recovered 7 | . . . . 2 . . . . . . . . . 1 2 . 1 . . . . 1 Drone Launches 5 | . . . . . . . . . . . . . . . . . . . . 5 . . Drone Recoveries 2 | . . . . . . . . . . . . . . . . . . . . 2 . . Exploration | -11 -10 -10 -9 -9 -9 -8 -8 -8 -7 -7 -7 -7 -6 -6 -6 -6 -5 -5 -5 -5 -5 -4 ------------- Run | Yrd Mat Min Mat Min Exi Min Mat Gar Fac Gar Fac DSF Fac Low Low Dat Pro Fac Upp Upp Zhi Pro Turns Passed 16038 | 133 594 262 977 585 629 329 1011 1284 610 484 15 587 2229 408 1325 150 643 1654 423 861 258 587 Spaces Moved 7859 | 68 267 115 415 304 377 145 422 622 307 245 14 263 1106 237 711 87 360 635 228 443 149 339 Core 226 | 3 . . . . . . . . . . . . . . . . . . . . . 223 Treads 7358 | 65 267 115 415 304 377 145 354 622 307 91 . 224 1106 237 711 87 360 635 228 443 149 116 Legs . | . . . . . . . . . . . . . . . . . . . . . . . Wheels 275 | . . . . . . . 68 . . 154 14 39 . . . . . . . . . . Hover . | . . . . . . . . . . . . . . . . . . . . . . . Flight . | . . . . . . . . . . . . . . . . . . . . . . . Fastest Speed 50 | 50 160 160 160 160 160 160 160 167 170 110 110 110 165 165 165 165 165 166 166 166 166 50 Average Speed 166 | 155 160 160 160 160 166 201 184 169 170 132 110 162 174 165 165 165 165 196 166 174 166 89 Slowest Speed 410 | 160 160 160 160 160 240 240 410 250 170 250 110 240 250 165 165 165 165 250 166 247 166 250 Overloaded Moves . | . . . . . . . . . . . . . . . . . . . . . . . Propulsion Burnouts . | . . . . . . . . . . . . . . . . . . . . . . . Robots Hopped . | . . . . . . . . . . . . . . . . . . . . . . . Potential Cave-ins . | . . . . . . . . . . . . . . . . . . . . . . . Cave-ins Triggered . | . . . . . . . . . . . . . . . . . . . . . . . Exploration Rate (%) 50 | 5 52 30 49 82 88 64 55 72 10 46 1 94 29 48 72 71 52 18 39 59 62 58 Regions Visited 22 Branch Regions 12 Pre-discovered Areas 7 | . 1 . 1 . . . . . . . . . . 1 . 1 . . . . 3 . Known Exits Taken 12 | . . . . . . . 1 . 1 . 1 . 1 1 1 1 1 1 1 1 1 . Unknown Exits Taken 7 | 1 1 1 1 1 1 1 . . . . . . . . . . . . . . . . Scrap Searched 13 | . . 1 . 1 . 1 . . . . . . . 2 1 . 2 . 2 3 . . Spaces Dug 15 | . . . . . . . . . . . . 5 3 . 7 . . . . . . . Terrain Destroyed 104 | . . . . . . . . . . 2 . 5 3 . 8 . . 17 22 17 . 30 Melee 15 | . . . . . . . . . . . . 5 3 . 7 . . . . . . . Projectile 74 | . . . . . . . . . . . . . . . 1 . . 4 22 17 . 30 AOE 15 | . . . . . . . . . . 2 . . . . . . . 13 . . . . Terrain Rammed . | . . . . . . . . . . . . . . . . . . . . . . . Walls Destroyed . | . . . . . . . . . . . . . . . . . . . . . . . Machines Disabled . | . . . . . . . . . . . . . . . . . . . . . . . Actions | -11 -10 -10 -9 -9 -9 -8 -8 -8 -7 -7 -7 -7 -6 -6 -6 -6 -5 -5 -5 -5 -5 -4 --------- Run | Yrd Mat Min Mat Min Exi Min Mat Gar Fac Gar Fac DSF Fac Low Low Dat Pro Fac Upp Upp Zhi Pro Total 9620 | 82 345 163 556 344 381 162 550 773 348 362 13 355 1286 246 797 94 378 933 245 486 160 561 Wait 803 | . 30 20 27 10 . 1 47 71 1 27 . 25 76 2 38 . 4 221 3 13 . 187 Move 7837 | 67 266 114 414 303 376 144 422 621 307 242 13 262 1105 236 710 86 359 634 227 442 148 339 Hop . | . . . . . . . . . . . . . . . . . . . . . . . Pick Up 64 | 2 3 1 7 . 1 1 5 10 1 . . 10 7 1 4 . . 4 . 2 2 3 Fast Attach 58 | 7 . 1 4 . . . 7 . 5 1 . 11 3 . 3 4 . 5 1 2 4 . Attach 37 | . . . 1 . . . . 1 3 9 . 3 4 . 1 . . 7 . 4 . 4 Detach 8 | . . 1 . . . . 1 . . . . 1 . . . . . 3 1 1 . . Swap 71 | 1 1 6 8 1 2 4 8 7 1 2 . 4 14 2 4 . . 2 1 2 1 . Drop 66 | . . 4 8 . 2 1 7 7 2 1 . 2 12 1 5 4 . 1 1 1 5 2 Fire 568 | 5 44 15 86 29 . 8 49 52 27 34 . 16 53 4 25 . 15 50 11 19 . 26 Melee 36 | . . . . . . . . . . . . 21 3 . 7 . . 5 . . . . Ram 1 | . . . . . . . 1 . . . . . . . . . . . . . . . Kick . | . . . . . . . . . . . . . . . . . . . . . . . Crush 20 | . 1 1 1 1 . 2 3 1 1 . . . 9 . . . . . . . . . Escape Stasis 46 | . . . . . . . . . . 46 . . . . . . . . . . . . Rewire 1 | . . . . . . . . . . . . . . . . . . 1 . . . . Trap 4 | . . . . . . 1 . 3 . . . . . . . . . . . . . . Miscellaneous . | . . . . . . . . . . . . . . . . . . . . . . . Route ------- -11/Scrapyard -10/Materials (discovered 2 exits: *Mat / [*Min]) -10/Mines -9/Materials (discovered 3 exits: *Mat / [*Min] / [*Sto]) -9/Mines (discovered 2 exits: *Mat / *Exi) -9/Exiles -8/Mines -8/Materials (discovered 2 exits: *Fac / Gar) -8/Garrison (discovered 3 exits: *Fac x3) -7/Factory (discovered 2 exits: *Fac / Gar) -7/Garrison (discovered 2 exits: *Fac x2) -7/Factory -7/DSF -6/Factory (discovered 5 exits: *Fac / *Low x2 / Ext x2) -6/Lower Caves -6/Lower Caves (discovered 2 exits: *Fac / *Dat) -6/Data Miner -5/Proximity Caves -5/Factory (discovered 2 exits: Fac / *Upp) -5/Upper Caves -5/Upper Caves -5/Zhirov -4/Proximity Caves (discovered 1 exit: *Fac) History --------- Turn | Location | Event 30 | -11/Scrapyard | Discovered new exit (range 14) 134 | -11/Scrapyard | Entered Materials 315 | -10/Materials | Build established: Mutant 367 | -10/Materials | Discovered new exit (range 16) 515 | -10/Materials | Discovered new exit (range 4) 728 | -10/Materials | Entered Mines 729 | -10/Mines | Met a Derelict bent on vengeance 822 | -10/Mines | Discovered new exit (range 8) 890 | -10/Mines | Joined a pair of Derelicts in attacking an 0b10 outpost 990 | -10/Mines | Entered Materials 990 | -9/Materials | Evolved 2 slots: Propulsion x1, Utility x1 1036 | -9/Materials | Discovered new exit (range 15) 1318 | -9/Materials | Build established: Scavenger-Mutant 1611 | -9/Materials | Discovered new exit (range 15) 1874 | -9/Materials | Repaired Lgt. Treads 1896 | -9/Materials | Discovered new exit (range 16) 1967 | -9/Materials | Entered Mines 1990 | -9/Mines | Core integrity fell below 50% 2288 | -9/Mines | Learned 2 Materials zone layouts 2294 | -9/Mines | Learned Materials garrison access intel 2488 | -9/Mines | Discovered new exit (range 7) 2544 | -9/Mines | Deemed a non-threat by the Exiles lab entrance 2546 | -9/Mines | Discovered new exit (range 5) 2552 | -9/Mines | Entered Exiles 2589 | -9/Exiles | Met 8R-AWN 2618 | -9/Exiles | Met EX-HEX 2663 | -9/Exiles | Met EX-BIN 2684 | -9/Exiles | Aligned with FarCom system 2685 | -9/Exiles | Given EX-Vault access code 2725 | -9/Exiles | Opened EX-Vault 2737 | -9/Exiles | Found PSU Rigger 2770 | -9/Exiles | Warned to stay clear of 0b10 Research branches 2819 | -9/Exiles | Met EX-DEC 2872 | -9/Exiles | Visited The Gauntlet 3162 | -9/Exiles | Discovered new exit (range 10) 3181 | -9/Exiles | Left Exiles lab with PSU Rigger 3181 | -9/Exiles | Entered Mines 3477 | -8/Mines | Found a Scrap Suit stashed away for nefarious purposes 3496 | -8/Mines | Discovered new exit (range 10) 3510 | -8/Mines | Entered Materials 3510 | -8/Materials | Evolved 2 slots: Propulsion x1, Utility x1 3511 | -8/Materials | Identified exit to Factory 3512 | -8/Materials | Loaded intel: 1 garrison access location 4179 | -8/Materials | Build established: Mutant 4466 | -8/Materials | Garrison activated, responded to threat 4521 | -8/Materials | Identified exit to Garrison 4521 | -8/Materials | Entered Garrison 4561 | -8/Garrison | Triggered checkpoint 4641 | -8/Garrison | Garrison Relay disabled 4705 | -8/Garrison | Discovered exit to Factory (range 56) 4705 | -8/Garrison | Discovered exit to Factory (range 62) 4705 | -8/Garrison | Discovered exit to Factory (range 24) 4819 | -8/Garrison | Triggered checkpoint 5091 | -8/Garrison | Triggered checkpoint 5110 | -8/Garrison | Garrison Relay disabled 5164 | -8/Garrison | Triggered checkpoint 5178 | -8/Garrison | Triggered checkpoint 5297 | -8/Garrison | Learned Factory security intel 5387 | -8/Garrison | Triggered checkpoint 5427 | -8/Garrison | Garrison Relay disabled 5805 | -8/Garrison | Entered Factory 5805 | -7/Factory | Evolved 2 slots: Utility x2 6254 | -7/Factory | Discovered new exit (range 15) 6415 | -7/Factory | Identified exit to Garrison 6415 | -7/Factory | Entered Garrison 6596 | -7/Garrison | Triggered checkpoint 6601 | -7/Garrison | Triggered checkpoint 6661 | -7/Garrison | Destroyed 8 combat bots 6677 | -7/Garrison | System corruption reached 10% 6701 | -7/Garrison | Triggered checkpoint 6731 | -7/Garrison | Lost 12 parts (2p2n4u4w) 6750 | -7/Garrison | Discovered new exit (range 10) 6760 | -7/Garrison | Attempted to access garrison exit controls, blocked by remote lockdown 6874 | -7/Garrison | Discovered new exit (range 12) 6881 | -7/Garrison | Garrison Relay disabled 6899 | -7/Garrison | Entered Factory 6914 | -7/Factory | Identified exit to DSF 6914 | -7/Factory | Entered DSF 6934 | -7/DSF | Discovered new exit (range 12) 6945 | -7/DSF | Additional patrols routed to DSF 7034 | -7/DSF | Lost 6 parts (2n3u1w) 7283 | -7/DSF | Build established: Scavenger-Mutant 7479 | -7/DSF | Sterilization system engaged 7499 | -7/DSF | Ambient heat levels rising (+10) 7501 | -7/DSF | Entered Factory 7501 | -6/Factory | Evolved 2 slots: Weapon x2 7909 | -6/Factory | Build established: Tank 7921 | -6/Factory | Discovered new exit (range 10) 8002 | -6/Factory | Identified exit to Factory 8432 | -6/Factory | Found Hvy. Reflective Plating 8851 | -6/Factory | Garrison activated, responded to threat 9352 | -6/Factory | Identified exit to Lower Caves 9352 | -6/Factory | Identified exit to Extension 9730 | -6/Factory | Entered Lower Caves 9736 | -6/Lower Caves | Met a Warlord Commander 9737 | -6/Lower Caves | Learned location of Warlord (-4) 9738 | -6/Lower Caves | Warlord Commander delivered Encrypted Comm Array 9742 | -6/Lower Caves | Found Unknown Device 9882 | -6/Lower Caves | Learned Factory emergency access door positions 9949 | -6/Lower Caves | Encountered a Warlord checkpoint 10128 | -6/Lower Caves | Discovered new exit (range 7) 10137 | -6/Lower Caves | Identified exit to Lower Caves 10138 | -6/Lower Caves | Entered another Lower Caves area 10138 | -6/Lower Caves | Discovered exit to Factory (range 15) 10408 | -6/Lower Caves | Spotted B-75 Beast 10500 | -6/Lower Caves | Learned location of 1 exit from Factory 10886 | -6/Lower Caves | Found Imp. Powered Armor 11438 | -6/Lower Caves | Discovered new exit (range 16) 11461 | -6/Lower Caves | Identified exit to Data Miner 11463 | -6/Lower Caves | Entered Data Miner 11463 | -6/Data Miner | Discovered new exit (range 6) 11470 | -6/Data Miner | Identified exit to Proximity Caves 11497 | -6/Data Miner | Met Data Miner 11535 | -6/Data Miner | Learned location of Section 7 (-2) 11535 | -6/Data Miner | Acquired the access code to Warlord's prototype stash 11563 | -6/Data Miner | Received God Mode back door access code from Data Miner 11613 | -6/Data Miner | Entered Proximity Caves 12256 | -5/Proximity Caves | Entered Factory 12256 | -5/Factory | Evolved 2 slots: Propulsion x1, Utility x1 12257 | -5/Factory | Identified exit to Upper Caves 12258 | -5/Factory | Identified exit to Factory 12451 | -5/Factory | Fabricated B-60 Warrior? 12483 | -5/Factory | Fabricated Y-54 Guardian (x2) 12545 | -5/Factory | Fabricated Imp. Treads (x2) 12869 | -5/Factory | Build established: Hacker-Tank 13652 | -5/Factory | Fabricated Adv. Force Booster? 13910 | -5/Factory | Entered Upper Caves 14317 | -5/Upper Caves | Discovered new exit (range 7) 14331 | -5/Upper Caves | Identified exit to Upper Caves 14333 | -5/Upper Caves | Entered another Upper Caves area 14481 | -5/Upper Caves | Spotted B-75 Beast 14533 | -5/Upper Caves | Destroyed B-75 Beast 14545 | -5/Upper Caves | Lost 4 parts (1p3n) 15046 | -5/Upper Caves | Attracted the attention of an 0b10 checkpoint 15179 | -5/Upper Caves | Discovered new exit (range 10) 15187 | -5/Upper Caves | Attracted the attention of an 0b10 outpost 15192 | -5/Upper Caves | Identified exit to Zhirov 15194 | -5/Upper Caves | Entered Zhirov 15194 | -5/Zhirov | Discovered new exit (range 3) 15210 | -5/Zhirov | Build established: Scavenger-Gunner 15224 | -5/Zhirov | Met Zhirov 15254 | -5/Zhirov | Learned location of Quarantine (-2) 15254 | -5/Zhirov | Learned location of Testing (-3) 15254 | -5/Zhirov | Learned location of Command (-1) 15287 | -5/Zhirov | Zhirov requested help retrieving the SGEMP Prototype 15318 | -5/Zhirov | Found Alien Artifact 15318 | -5/Zhirov | Identified Integrated Dissipator 15318 | -5/Zhirov | Installed Integrated Dissipator, increased core heat dissipation (+20) 15341 | -5/Zhirov | Found Alien Artifact 15451 | -5/Zhirov | Identified exit to Proximity Caves 15452 | -5/Zhirov | Entered Proximity Caves 15455 | -4/Proximity Caves | Spotter reported a threat 15455 | -4/Proximity Caves | Spotter reported a threat 15632 | -4/Proximity Caves | Received a Behemoth hack from an annoying Tinkerer 15668 | -4/Proximity Caves | Build established: Hacker-Gunner 15737 | -4/Proximity Caves | Attracted the attention of an 0b10 checkpoint 15856 | -4/Proximity Caves | Learned Research trap positions 15867 | -4/Proximity Caves | Lost 3 parts (2u1w) 15888 | -4/Proximity Caves | Attracted the attention of an 0b10 outpost 15926 | -4/Proximity Caves | Released all parts (6) 15927 | -4/Proximity Caves | Core integrity fell below 50% 15934 | -4/Proximity Caves | Core integrity fell below 20% 15956 | -4/Proximity Caves | Lost 12 parts (1p5n2u4w) 16036 | -4/Proximity Caves | Discovered exit to Factory (range 6) 16039 | -4/Proximity Caves | Destroyed by G-73 Enforcer with Heavy Laser Last Messages --------------- 15925_ Slug penetrates Wall. 15925_ KE Penetrator destroyed. 15925_ Fusion Reactor destroyed. 15926_ Released Imp. Signal Interpreter. 15926_ Released Hacking Suite. 15926_ Released Hcp. Storage Unit. 15926_ Released Imp. Targeting Computer. 15926_ Released Adv. Force Field. 15926_ Released Enh. Gauss Cannon. 15927_ Lgt. Nuclear Core fries itself beyond repair. 15928_ Dropped Matter Compressor. 15928_ Penetrated by Slug. 15928_ Slug penetrates Wall. 15928_ Extracted 51 matter. 15929_ Critical hit (Burn: +37). 15929_ Acquired Alien Artifact. 15930_ Wall collapses. 15935_ Slug penetrates Wall. 16036_ EXIT=FOUND: FACTORY Map ----- +----------------------------------------------------+ | ?????????????????????????????????????????????????? | | ?????????????????????????????????????????????????? | | ##???????????????????????????????????????????????? | | ##??????????????????????????????????????????????? | | #??????????????????????????????????????????????? | | #####??????????????????????????????????????????? | | ##?????????????????????????????????????????? | | #?????????????????????????????????????????? | | ## ##????????????????????????????????????????? | | #### #????????????????????????????????????????? | | ???## #????????????????????????????????????????? | | ????## ##?????????????????? ???????????????????? | | ?????## ##????????????????? ??????????????????? | | ??????## ##??????????????? # ??????????????????? | | ???????# ##??????????????g ???????????????????? | | ???????# #?????????????? g ???????????????????? | | ??????## ####?????????????? b#???????????????????? | | ??????# ##???????????????? b#???????????????????? | | ??????# ##??????????????# ????????????????????? | | ??????# ##??????????###% ????????????????????? | | #????# ##????????## ! ?????????????????????? | | #????# ##???????# ?????????????????????? | | #?????## #####???# ??????????????????????? | | ???????## ## ### ??????????????????????? | | ???????## # <%#??????????????????????? | | ????#### ##?# @#?####????#????????????? | | ##### ### ##??# ## ## #????????????? | | # ### #?###### # #????????????? | | # #### ### #????????????? | | # #### ## ### #????????????? | | # ## #### ##### #?????? #????????????? | | ### ########## #??????????????????????? | | ### ????????????? | | ????????????? | | ############ #?????????????? | | #????????????## ##### ######?????????????? | | ??????????????######???########??????????????????? | | ?????????????????????????????????????????????????? | | ?????????????????????????????????????????????????? | | ?????????????????????????????????????????????????? | | ?????????????????????????????????????????????????? | | ?????????????????????????????????????????????????? | | ?????????????????????????????????????????????????? | | ?????????????????????????????????????????????????? | | ?????????????????????????????????????????????????? | | ?????????????????????????????????????????????????? | | ?????????????????????????????????????????????????? | | ?????????????????????????????????????????????????? | | ?????????????????????????????????????????????????? | | ?????????????????????????????????????????????????? | +----------------------------------------------------+ Best States ------------- Heat Dissipation 60 Energy Generation 23 Energy Capacity 310 Matter Stores 300 Matter Capacity 300 Sight Range 16 Terrain Scan Density 10 Armor Coverage 675 Resistance: TH 25 Resistance: EM 20 Propulsion Shielding 90 Evasion (%) 50 Targeting Accuracy 6 Recoil Reduction 5 Offensive Hacking 22 Authchip Count 1 Item Schematics ----------------- Lgt. Treads | -9/Materials | Scanalyzed Imp. Assault Rifle | -9/Materials | Scanalyzed Imp. Treads | -8/Materials | Hacked Arm. Treads | -6/Factory | Scanalyzed Hrd. Heavy Armor Plating | -6/Factory | Scanalyzed Hvy. Reflective Plating | -6/Factory | Scanalyzed Combat Drone Bay | -6/Data Miner | Free Lgt. Regenerative Plating | -6/Data Miner | Free Enh. Flexi-carbon Leg | -6/Data Miner | Free Prc. Matter Filter | -6/Data Miner | Free Hvy. Proton Cannon | -6/Data Miner | Free Field Propulsion Array | -6/Data Miner | Free Lrn. Terrain Scanner | -6/Data Miner | Free HERF Cannon | -6/Data Miner | Free Imp. Transmission Jammer | -6/Data Miner | Free Assault Drone Bay | -5/Zhirov | Free Exp. Heat Sink | -5/Zhirov | Free Exp. Optical Array | -5/Zhirov | Free Imp. Arc Thrower | -5/Zhirov | Free Robot Schematics ------------------ S-27 Virus | -6/Data Miner | Free R-10 Processor | -6/Data Miner | Free X-67 Chaingunner | -6/Data Miner | Free L-41 Fighter | -6/Data Miner | Free O-32 Director | -6/Data Miner | Free Fabricated ------------ B-60 Warrior | x3 | -5/Factory | Preloaded Y-54 Guardian | x2 | -5/Factory | Preloaded Imp. Treads | x2 | -5/Factory Adv. Force Booster | x2 | -5/Factory | Preloaded Repaired ---------- Lgt. Treads | 13% | -9/Materials Alien Tech Used ----------------- Integrated Dissipator Achievements -------------- None Challenges ------------ None Game ------ Seed PhaseMappingBay Manual? 0 Play Time 02:26:03 Cumulative 182.0 hours Start 2025.05.25 @ 13:49:57 End 2025.05.25 @ 22:19:01 Sessions 3 Manual Loads 0 Difficulty Rogue Special Mode None Game No. 97 Rogue 97 Adventurer 0 Explorer 0 Win Type - Total 12 Types 5/0/4/1/2/0/0/0/0/0 Lore% 76 Gallery% 64 Achievement% 64 Wizard Run 0 Options --------- Layout 1 ASCII 0 Keyboard 0 Movement Numpad Keybinds 0 Fullscreen 1 Font 24/Smallcaps Map View 50x35 Zoom Use 0% Tactical HUD 1 Map Filters NONE Filters NONE Steam 1 RUN: 17747722-d7ba-442e-94a8-ae0a193d4bb5